Cogmind - Beta 14 @@@ ROGUE MODE // 2024.12.12 @ 20:46:20 Player: xack Result: Self-destructed Performance ------------- Evolutions (6) 3000 Regions Visited (16) 3200 Robots Destroyed (249) 1245 Value Destroyed (11436) 11436 Prototype IDs (40) 800 Alien Tech Used (0) 0 Bonus (6301) 6301 TOTAL SCORE: 25982 Bonus ------- High Alert Combat Kills 2416 Follower Combat Kills 1326 Entered Garrisons 400 Used RIF Installer 1500 Entered DSFs 500 Aligned with FarCom 300 Friendly Fire -141 Cogmind --------- Core Integrity 549/1150 Matter 217/300 Energy 440/540 System Corruption 17% Temperature Cool (18) Movement Treading (245) Ox1 Location -4/Factory Parts ------- > --- POWER (2) -------- Neutrino Core Antimatter Reactor > --- PROPULSION (5) --- Improved Medium Treads Armored Medium Treads > --- UTILITY (7) ------ Advanced Cooling System High-capacity Storage Unit Relay Coupler [Grunt] (2) Improved Dynamic Insulation System > --- WEAPON (5) ------- Mass Driver > --- INVENTORY (20) --- Hybrid Fission Core Hybrid Fission Core Advanced Heat Sink Advanced Cooling System Advanced Cooling System Improved Coolant Injector Improved Weapon Cycler Advanced Hacking Suite Improved Component Analysis Suite Tesla Rifle Plasma Rifle Heavy Phase Cannon Heavy Phase Cannon Peak State ------------ > --- POWER ------------ Neutrino Core Hybrid Antimatter Reactor > --- PROPULSION ------- Improved Medium Treads Improved Medium Treads Armored Medium Treads Armored Medium Treads Advanced Medium Treads > --- UTILITY ---------- Advanced Cooling System High-capacity Storage Unit Layered Heavy Armor Plating Improved Remote Force Field Relay Coupler [Brawler] Improved Dynamic Insulation System > --- WEAPON ----------- Tesla Rifle Heavy Phase Cannon Heavy Phase Cannon KE Penetrator Mass Driver > --- INVENTORY -------- Hybrid Fission Core Hybrid Fission Core Antimatter Reactor Armored Medium Treads Armored Medium Treads Advanced Heat Sink Advanced Cooling System Advanced Cooling System Improved Coolant Injector Improved Weapon Cycler Improved Medium Armor Plating Relay Coupler [Grunt] Improved Component Analysis Suite Tesla Rifle Plasma Rifle Heavy Phase Cannon Heavy Phase Cannon Mass Driver Mini Grenade Launcher Improved Remote Datajack [Rating: 118] Favorites ----------- Power Cooled Ion Engine Engine Cooled Ion Engine Power Core Enhanced Nuclear Core Reactor Hybrid Antimatter Reactor Propulsion Light Treads Treads Light Treads Leg Aluminum Leg Utility High-capacity Storage Unit Device Improved Heat Sink Storage High-capacity Storage Unit Processor Advanced Targeting Computer Hackware Relay Coupler [Sentry] Protection Hardened Medium Armor Plating Weapon Enhanced Autogun Energy Gun Improved EM Shotgun Energy Cannon Heavy Particle Cannon Ballistic Gun Enhanced Autogun Ballistic Cannon Gauss Cannon Launcher Mini Grenade Launcher Special Weapon Remote Datajack Build | -11 -10 -10 -9 -9 -9 -8 -8 -8 -8 -7 -7 -7 -6 -6 -5 -4 ------- Run | Yrd Mat Min Mat Min Exi Min Mat Gar Mat Fac Gar Fac Fac DSF Fac Fac Slots Evolved 12 | . . . 2 . . . 2 . . 2 . . 2 . 2 2 Power 1 | . . . . . . . . . . . . . 1 . . . Propulsion 3 | . . . 1 . . . 1 . . . . . . . 1 . Utility 5 | . . . . . . . 1 . . 1 . . 1 . 1 1 Weapon 3 | . . . 1 . . . . . . 1 . . . . . 1 Parts Attached 215 | 6 13 . 22 1 2 . 26 11 10 4 21 9 1 19 15 55 Power 17 | 1 2 . 5 . 1 . 1 . 1 . 1 . . 2 . 3 Engine 13 | 1 2 . 5 . 1 . 1 . 1 . 1 . . 1 . . Core 2 | . . . . . . . . . . . . . . 1 . 1 Reactor 2 | . . . . . . . . . . . . . . . . 2 Propulsion 45 | 2 5 . 6 . 1 . 8 . 2 . 2 2 . 2 6 9 Treads 43 | . 5 . 6 . 1 . 8 . 2 . 2 2 . 2 6 9 Leg 2 | 2 . . . . . . . . . . . . . . . . Wheel . | . . . . . . . . . . . . . . . . . Hover . | . . . . . . . . . . . . . . . . . Flight . | . . . . . . . . . . . . . . . . . Utility 56 | 1 3 . 2 1 . . 5 3 3 2 9 5 1 3 6 12 Device 28 | . 1 . . . . . 2 1 . 2 5 4 1 2 4 6 Storage 5 | 1 2 . 1 . . . . . 1 . . . . . . . Processor 1 | . . . . . . . . . . . . . . . . 1 Hackware 6 | . . . . . . . . . . . 3 . . 1 . 2 Protection 16 | . . . 1 1 . . 3 2 2 . 1 1 . . 2 3 Artifact . | . . . . . . . . . . . . . . . . . Weapon 97 | 2 3 . 9 . . . 12 8 4 2 9 2 . 12 3 31 Energy Gun 18 | 1 1 . 4 . . . 4 . 1 1 . . . 1 1 4 Energy Cannon 18 | . . . 2 . . . 2 1 1 . 1 1 . 1 2 7 Ballistic Gun 27 | 1 2 . 3 . . . 6 4 1 . . 1 . 5 . 4 Ballistic Cannon 8 | . . . . . . . . . . 1 4 . . . . 3 Launcher 14 | . . . . . . . . 3 1 . 1 . . 2 . 7 Special Weapon 12 | . . . . . . . . . . . 3 . . 3 . 6 Impact Weapon . | . . . . . . . . . . . . . . . . . Slashing Weapon . | . . . . . . . . . . . . . . . . . Piercing Weapon . | . . . . . . . . . . . . . . . . . Special Melee Weapon . | . . . . . . . . . . . . . . . . . Unidentified Prototypes 5 | . . . 2 . . . 1 . 1 . . 1 . . . . Parts Lost 51 | . 5 . 1 . . . 7 4 1 . 5 2 . . . 26 Power 6 | . 1 . . . . . 1 . . . 1 . . . . 3 Propulsion 14 | . 2 . . . . . 1 . 1 . 2 . . . . 8 Utility 10 | . . . . . . . 1 2 . . 1 1 . . . 5 Weapon 21 | . 2 . 1 . . . 4 2 . . 1 1 . . . 10 Highest Loss Streak 13 | . 2 . 1 . . . 2 2 1 . 2 1 . . . 13 To Critical Strikes 1 | . . . . . . . . . . . . . . . . 1 Average Slot Usage (%) 98 | . 98 100 97 100 100 100 99 100 99 100 99 100 93 99 99 93 Engine 8 | . 14 14 11 11 11 11 9 9 9 7 6 7 6 6 5 2 Treads 31 | . 26 28 30 33 33 33 35 36 36 30 29 30 26 26 29 25 Device 9 | . 12 14 8 . . . 9 5 9 15 12 15 20 14 18 13 Storage 8 | . 14 14 11 11 11 11 9 9 9 7 7 7 6 6 5 5 Protection 7 | . . . 2 11 11 11 9 12 8 7 6 7 6 6 4 5 Energy Gun 8 | . 14 14 21 22 22 22 11 1 . 7 . . . 5 2 7 Energy Cannon 6 | . . . 2 . . . 5 4 8 7 13 15 13 6 9 9 Ballistic Gun 11 | . 14 14 8 11 11 11 8 20 18 12 7 8 13 11 9 4 Ballistic Cannon 1 | . . . . . . . . . . 2 6 5 . . . 1 Peak Build Rating 118 | 6 8 8 20 21 22 22 40 43 43 50 50 51 52 66 87 118 Average Rating 39 | 5 7 8 17 20 21 22 29 41 41 49 49 49 52 60 78 106 On Entrance 34 | . 6 8 8 20 21 22 22 40 43 42 50 50 50 52 66 87 Naked Turns . | . . . . . . . . . . . . . . . . . Heaviest Build 145 | 11 28 28 60 62 62 62 71 74 71 76 86 86 88 90 92 145 Greatest Support 147 | 20 40 40 60 60 60 60 98 96 96 96 96 90 90 108 147 144 Greatest Overweight (x) 1 | . . . . 1 1 1 1 . . . 1 . . . . 1 Average Overweight (x) . | . . . . . 1 1 . . . . . . . . . . Largest Inventory Capacity 20 | 8 15 15 20 20 20 20 20 20 20 20 20 20 20 20 20 20 Average Capacity 18 | 7 14 15 18 20 20 20 20 20 20 20 20 20 20 20 20 20 Most Carried 20 | 7 15 15 20 20 20 20 20 20 20 20 20 20 18 20 20 20 Average Carried 18 | 5 12 15 18 20 20 20 19 19 19 19 19 19 18 19 19 19 Final Capacity 20 | 8 15 15 20 20 20 20 20 20 20 20 20 20 20 20 20 20 Final Carried 20 | 6 15 15 20 20 20 20 20 20 18 20 20 19 18 20 20 13 Class Distribution -------------------- 46% | Skirmisher 32% | Tank 14% | Mutant 3% | Scavenger-Tank 3% | Scavenger-Skirmisher Dominant Class ---------------- Mutant | -10/Materials Mutant | -10/Mines Skirmisher | -9/Materials Tank | -9/Mines Tank | -9/Exiles Skirmisher | -8/Mines Tank | -8/Materials Tank | -8/Garrison Skirmisher | -8/Materials Skirmisher | -7/Factory Skirmisher | -7/Garrison Skirmisher | -7/Factory Skirmisher | -6/Factory Scavenger-Skirmisher | -6/DSF Scavenger-Tank | -5/Factory Skirmisher | -4/Factory Resources | -11 -10 -10 -9 -9 -9 -8 -8 -8 -8 -7 -7 -7 -6 -6 -5 -4 ----------- Run | Yrd Mat Min Mat Min Exi Min Mat Gar Mat Fac Gar Fac Fac DSF Fac Fac Matter Collected 5602 | 254 378 . 391 47 . 40 601 898 472 100 620 272 . 289 266 974 Remotely . | . . . . . . . . . . . . . . . . . Salvage Created 10016 | . 744 . 1344 130 . 58 1570 1178 754 256 676 362 . 146 405 2393 Parts 483 | . 43 . 87 9 . 7 91 57 36 14 27 21 . 4 21 66 Haulers Intercepted 7 | . 1 . 3 . . . 2 . . . . . . . 1 . Recyclers Shooed 4 | . . . . . . . 3 . . . . . . . . 1 Parts Field Recycled . | . . . . . . . . . . . . . . . . . Retrieved Matter . | . . . . . . . . . . . . . . . . . Parts Self-Destructed . | . . . . . . . . . . . . . . . . . Prevented . | . . . . . . . . . . . . . . . . . Kills | -11 -10 -10 -9 -9 -9 -8 -8 -8 -8 -7 -7 -7 -6 -6 -5 -4 ------- Run | Yrd Mat Min Mat Min Exi Min Mat Gar Mat Fac Gar Fac Fac DSF Fac Fac Combat Hostiles Destroyed 208 | . 16 . 28 7 . 4 28 34 17 2 19 6 . 4 5 38 Guns 111 | . 16 . 24 6 . 2 18 23 4 . 2 2 . 3 3 8 Cannons 54 | . . . 2 . . . 5 4 7 2 15 4 . . 1 14 AOE 36 | . . . 1 1 . 2 4 6 6 . 2 . . 1 . 13 Classes Destroyed 18 | . 5 . 3 . . . 5 2 . 1 . . . . 1 1 Worker 4 | . . . 2 . . . 2 . . . . . . . . . Builder 2 | . . . . . . . 1 . . . . . . . 1 . Tunneler 1 | . . . . . . . 1 . . . . . . . . . Hauler 7 | . 1 . 3 . . . 2 . . . . . . . 1 . Recycler 8 | . . . . . . . 4 . . 2 . . . . . 2 Mechanic 4 | . . . . . . . 1 . . . . . . . . 3 Operator 3 | . 1 . 1 . . . . . . . . . . . . 1 Watcher 12 | . 3 . 4 . . . 3 . . . . 1 . . . 1 Swarmer 55 | . 3 . 9 6 . 4 10 10 . . 9 . . . . 4 Saboteur 1 | . . . . . . . . . . . . . . . . 1 Grunt 82 | . 13 . 11 1 . . 7 12 10 . 3 2 . 3 . 20 Brawler 7 | . . . . . . . . 4 2 . . . . . . 1 Duelist 6 | . . . 1 . . . . . 1 . 1 . . 1 . 2 Sentry 35 | . . . 7 . . . 8 5 4 1 5 3 . . . 2 Specialist 2 | . . . . . . . . 2 . . . . . . . . Hunter 6 | . . . . . . . 3 1 . . . . . . . 2 Programmer 13 | . . . . . . . . . . 1 1 1 . . 4 6 Heavy 1 | . . . . . . . . . . . . . . . 1 . Best Kill Streak 8 | . 4 . 4 3 . 4 7 6 8 3 5 4 . 3 4 7 Combat Bots Only 8 | . 4 . 4 3 . 4 5 6 8 1 5 3 . 3 3 7 Max Kills in Single Turn 5 | . 1 . 2 1 . 3 5 3 3 1 2 1 . 1 2 4 Gunslinging 1 | . . . 1 . . . 1 . . . . . . . . . Exploded 3 | . . . 1 1 . 2 2 3 3 . 2 . . 1 . 3 Melee . | . . . . . . . . . . . . . . . . . Uniques/NPCs Destroyed . | . . . . . . . . . . . . . . . . . Combat | -11 -10 -10 -9 -9 -9 -8 -8 -8 -8 -7 -7 -7 -6 -6 -5 -4 -------- Run | Yrd Mat Min Mat Min Exi Min Mat Gar Mat Fac Gar Fac Fac DSF Fac Fac Hostile Shots Fired 1271 | . 99 . 84 10 . 7 134 137 41 2 143 85 . 47 24 458 Missed 397 | . 30 . 29 4 . 1 41 33 9 1 46 36 . 18 6 143 Damage Taken 15513 | . 792 . 763 54 . 45 1412 1441 622 95 1212 512 . 642 370 7553 Core 1187 | . 56 . 73 8 . . 139 94 31 . 56 29 . 38 62 601 Absorbed by Shields 734 | . . . . . . . 377 143 . . 32 . . . . 182 Core Remaining (%) 83 | 100 . 77 . . . 79 . . 52 . . 87 . 95 93 . Volleys Fired 566 | . 82 . 66 9 . 5 93 82 38 6 46 19 . 11 14 95 Largest 5 | . 2 . 3 3 . 3 3 3 3 4 4 4 . 4 4 5 Hottest 367 | . 70 . 172 124 . 124 138 113 125 198 211 211 . 185 210 367 Shots Fired 1558 | . 164 . 186 27 . 12 247 211 109 24 141 73 . 23 56 285 Gun 1040 | . 164 . 172 27 . 12 183 154 72 12 43 29 . 12 29 131 Cannon 454 | . . . 14 . . . 64 47 34 12 88 44 . 4 27 120 Launcher 43 | . . . . . . . . 10 3 . 5 . . 4 . 21 Special 21 | . . . . . . . . . . . 5 . . 3 . 13 Kinetic 661 | . 82 . 57 9 . 5 80 141 72 12 69 37 . 8 28 61 Thermal 559 | . 82 . 100 9 . 5 90 47 34 6 32 34 . 8 14 98 Explosive 43 | . . . . . . . . 10 3 . 5 . . 4 . 21 Electromagnetic 274 | . . . 29 9 . 2 77 13 . 6 30 2 . . 14 92 Robot Hit Streak 16 | . 10 . 16 4 . 4 13 12 12 3 9 9 . 5 9 16 Robot Miss Streak 7 | . 5 . 4 3 . 2 6 6 4 4 7 3 . 3 2 5 Penetration Max 1 | . . . . . . . 1 1 . . . . . . . 1 Secondary Targets 12 | . 1 . 6 . . 2 3 . . . . . . . . . Max Gunslinging Chain 2 | . 1 . 2 . . 2 1 . . . . . . . . . Shots Hit Robots 879 | . 98 . 113 14 . 7 142 106 58 11 70 38 . 11 42 169 Core Hits 465 | . 38 . 51 8 . 4 73 52 40 5 30 14 . 11 11 128 Critical Kills 5 | . . . 1 . . . 1 3 . . . . . . . . Critical Parts Destroyed 5 | . . . . . . . . 2 1 . . . . . 1 1 Critical Strikes 28 | . 8 . 4 . . 1 2 5 1 . 2 . . . 2 3 Burn 13 | . 8 . 3 . . 1 1 . . . . . . . . . Meltdown 1 | . . . . . . . . 1 . . . . . . . . Destroy 9 | . . . 1 . . . 1 4 1 . . . . . 1 1 Blast 3 | . . . . . . . . . . . 2 . . . . 1 Corrupt 2 | . . . . . . . . . . . . . . . 1 1 Melee Attacks . | . . . . . . . . . . . . . . . . . Impact . | . . . . . . . . . . . . . . . . . Slashing . | . . . . . . . . . . . . . . . . . Piercing . | . . . . . . . . . . . . . . . . . Sneak Attacks . | . . . . . . . . . . . . . . . . . Combat Hostiles . | . . . . . . . . . . . . . . . . . Follow-up Attacks . | . . . . . . . . . . . . . . . . . Damage Inflicted 24420 | . 1232 . 2028 252 . 170 3624 2935 1815 260 1615 857 . 661 924 8047 Guns 10339 | . 1232 . 1733 213 . 98 2029 1513 666 58 322 262 . 93 533 1587 Cannons 6530 | . . . 159 . . . 648 647 475 202 1175 595 . 47 391 2191 Explosions 7550 | . . . 135 39 . 72 947 775 674 . 118 . . 521 . 4269 Melee . | . . . . . . . . . . . . . . . . . Ramming 1 | . . . 1 . . . . . . . . . . . . . Kinetic 6425 | . 597 . 401 60 . 27 798 1399 666 116 692 315 . 55 513 786 Thermal 8096 | . 635 . 1208 120 . 124 1584 647 475 106 580 519 . 85 278 1735 Explosive 6319 | . . . . . . . 246 775 674 . . . . 521 . 4103 Electromagnetic 3579 | . . . 418 72 . 19 996 114 . 38 343 23 . . 133 1423 Impact . | . . . . . . . . . . . . . . . . . Slashing . | . . . . . . . . . . . . . . . . . Piercing . | . . . . . . . . . . . . . . . . . Highest Corruption 17 | . 1 1 . 1 1 1 3 3 3 . 1 1 . . 5 17 Average Corruption 1 | . 1 1 . 1 1 1 3 3 3 . 1 1 . . 4 1 Corruption Purged . | . . . . . . . . . . . . . . . . . Corruption Blocked . | . . . . . . . . . . . . . . . . . Effects 155 | . 10 1 . 7 5 4 26 44 26 . 12 6 . . 8 6 Message Errors 28 | . . . . 3 1 . 4 10 4 . 3 2 . . 1 . Matter Fused 37 | . 4 . . 1 1 2 4 12 6 . 1 2 . . 3 1 Heat Flow Errors 22 | . 1 1 . 1 1 . 3 4 2 . 5 1 . . 2 1 Energy Discharges 15 | . . . . 1 1 1 3 4 3 . . . . . 1 1 Parts Rejected 1 | . . . . . . . . . 1 . . . . . . . Parts Fused 1 | . . . . . . . 1 . . . . . . . . . Data Loss (minor) 32 | . 1 . . 1 1 1 9 9 5 . 3 1 . . . 1 Data Loss (major) 5 | . 1 . . . . . . 3 . . . . . . 1 . Misfires 5 | . 2 . . . . . . 1 2 . . . . . . . Alerts 4 | . . . . . . . 1 1 2 . . . . . . . Weapon Failures 5 | . 1 . . . . . 1 . 1 . . . . . . 2 Overload Shots . | . . . . . . . . . . . . . . . . . Overflow Damage 282 | . . . 18 . . . 90 6 . 1 37 2 . . 3 125 Projectiles 115 | . . . . . . . 12 6 . 1 22 2 . . 3 69 Explosions 167 | . . . 18 . . . 78 . . . 15 . . . . 56 Melee . | . . . . . . . . . . . . . . . . . Knockbacks 6 | . . . . . . . . . . . 4 1 . . . 1 Impact . | . . . . . . . . . . . . . . . . . Kinetic 6 | . . . . . . . . . . . 4 1 . . . 1 Secondary . | . . . . . . . . . . . . . . . . . Self-Inflicted Damage 1782 | . . . 97 . . . 403 261 62 . 218 . . 43 . 698 Shots 37 | . . . 3 . . . 8 6 2 . 3 . . 1 . 14 Rammed 1 | . . . 1 . . . . . . . . . . . . . Targets Rammed 1 | . . . 1 . . . . . . . . . . . . . Kicked . | . . . . . . . . . . . . . . . . . Crushed . | . . . . . . . . . . . . . . . . . Highest Temperature 461 | . 230 190 320 149 210 160 443 461 260 125 426 416 . . 204 379 Average Temperature 106 | . 50 97 99 62 106 94 126 143 79 56 97 181 . . 38 121 Received Heat Transfer 3331 | . 411 . 159 12 . . 267 465 270 . 147 165 . 162 . 1273 Effects 22 | . . . 3 . . . 2 12 . . 1 . . . 1 3 Shutdowns 4 | . . . . . . . 1 2 . . . . . . . 1 Energy Bleed 1 | . . . . . . . . . . . . . . . . 1 Interference 12 | . . . 3 . . . 1 7 . . . . . . 1 . Matter Decay 3 | . . . . . . . . 2 . . . . . . . 1 Damage (minor) 2 | . . . . . . . . 1 . . 1 . . . . . Siege Activations . | . . . . . . . . . . . . . . . . . Robots Corrupted 3 | . . . . . . . 1 . . . . . . . . 2 Combat Hostiles 3 | . . . . . . . 1 . . . . . . . . 2 Parts Fried 17 | . . . . . . . 5 . . . . . . . 4 8 Impact Corruptions . | . . . . . . . . . . . . . . . . . Robots Melted 2 | . . . 1 . . . . 1 . . . . . . . . Combat Hostiles 2 | . . . 1 . . . . 1 . . . . . . . . Parts Melted 30 | . 6 . 8 . . . 1 5 1 . . 3 . . 2 4 Heat Transferred 13794 | . 2479 . 2740 185 . 185 2528 998 703 148 816 777 . 148 296 1791 Parts Sabotaged . | . . . . . . . . . . . . . . . . . Parts Stolen . | . . . . . . . . . . . . . . . . . Parts Stripped . | . . . . . . . . . . . . . . . . . Power Chain Reactions 17 | . . . 3 1 . 1 10 . . . 2 . . . . . Alert | -11 -10 -10 -9 -9 -9 -8 -8 -8 -8 -7 -7 -7 -6 -6 -5 -4 ------- Run | Yrd Mat Min Mat Min Exi Min Mat Gar Mat Fac Gar Fac Fac DSF Fac Fac Peak Influence 2180 | . 158 . 309 305 . 96 559 2180 1229 522 1048 663 154 319 298 1877 Initial 1062 | . . . . 78 . . 37 363 1062 522 28 550 154 111 167 82 Average 497 | . 40 . 152 137 . 73 294 1194 1055 156 532 466 154 191 167 994 Maximum Alert Level 5 | . . . 1 1 . . 2 5 4 2 3 2 . 1 1 5 Low Security (%) 40 | 100 100 100 75 66 . 100 33 . . 64 18 . 100 50 90 5 Level 1 18 | . . . 24 33 . . 37 6 . 22 23 33 . 49 9 14 Level 2 14 | . . . . . . . 28 15 . 13 17 66 . . . 18 Level 3 12 | . . . . . . . . 20 65 . 39 . . . . 13 Level 4 9 | . . . . . . . . 32 34 . . . . . . 27 Level 5 5 | . . . . . . . . 24 . . . . . . . 20 High Security . | . . . . . . . . . . . . . . . . . Max Security . | . . . . . . . . . . . . . . . . . Sterilizations 1 | . . . . . . . . . . . . . . 1 . . Squads Dispatched 36 | . 4 . 2 1 . . 4 . 3 1 . 2 . 1 2 16 Investigation 5 | . 2 . 1 1 . . 1 . . . . . . . . . Extermination 7 | . . . . . . . . . . 1 . 1 . . 2 3 Reinforcement 13 | . 2 . 1 . . . 3 . 1 . . 1 . 1 . 4 Assault 11 | . . . . . . . . . 2 . . . . . . 9 Garrison . | . . . . . . . . . . . . . . . . . Intercept . | . . . . . . . . . . . . . . . . . Searches Triggered . | . . . . . . . . . . . . . . . . . Construction Impeded 2 | . . . . . . . 1 . . . . . . . . 1 Haulers Reinforced 2 | . . . . . . . . . . . . . . . . 2 Active Scanning Responses . | . . . . . . . . . . . . . . . . . Cargo Convoy Interrupts . | . . . . . . . . . . . . . . . . . Alert ID Control Effect 1 | . . . . . . . . . . . . . . 1 . . Stealth | -11 -10 -10 -9 -9 -9 -8 -8 -8 -8 -7 -7 -7 -6 -6 -5 -4 --------- Run | Yrd Mat Min Mat Min Exi Min Mat Gar Mat Fac Gar Fac Fac DSF Fac Fac Distress Signals 10 | . 2 . 3 . . . 1 . 2 . . . . . . 2 Communications Jammed . | . . . . . . . . . . . . . . . . . Distress Signals . | . . . . . . . . . . . . . . . . . Times Spotted 324 | . 23 . 40 7 . 4 38 35 29 2 31 8 . 11 6 90 Peak Tracking Total 15 | . 5 . 5 3 . 4 5 6 6 1 5 3 . 4 2 15 Tactical Retreats 15 | . . . . 1 . . 2 3 . . . . . 1 1 7 Traps | -11 -10 -10 -9 -9 -9 -8 -8 -8 -8 -7 -7 -7 -6 -6 -5 -4 ------- Run | Yrd Mat Min Mat Min Exi Min Mat Gar Mat Fac Gar Fac Fac DSF Fac Fac Traps Triggered 11 | . . . 2 . . . 1 2 . 2 2 1 . 1 . . Indirectly . | . . . . . . . . . . . . . . . . . Trap Hack Attempts . | . . . . . . . . . . . . . . . . . Triggered . | . . . . . . . . . . . . . . . . . Disarmed . | . . . . . . . . . . . . . . . . . Reprogrammed . | . . . . . . . . . . . . . . . . . Reused . | . . . . . . . . . . . . . . . . . Traps Extracted . | . . . . . . . . . . . . . . . . . Installed . | . . . . . . . . . . . . . . . . . Triggered . | . . . . . . . . . . . . . . . . . Machines | -11 -10 -10 -9 -9 -9 -8 -8 -8 -8 -7 -7 -7 -6 -6 -5 -4 ---------- Run | Yrd Mat Min Mat Min Exi Min Mat Gar Mat Fac Gar Fac Fac DSF Fac Fac Machines Disabled 69 | . . . 5 1 . . 9 6 2 . 6 2 . 1 1 36 Max in Single Turn 4 | . . . 2 1 . . 3 2 1 . 1 1 . . 1 4 Garrison Access 1 | . . . . . . . . . . . . . . . . 1 Garrison Relay 8 | . . . . . . . . 4 . . 4 . . . . . Phase Generator 2 | . . . . . . . . 1 . . 1 . . . . . Machines Repaired . | . . . . . . . . . . . . . . . . . Machines Dismantled . | . . . . . . . . . . . . . . . . . Machines Sabotaged . | . . . . . . . . . . . . . . . . . Overloaded Fab Kills . | . . . . . . . . . . . . . . . . . Hacking | -11 -10 -10 -9 -9 -9 -8 -8 -8 -8 -7 -7 -7 -6 -6 -5 -4 --------- Run | Yrd Mat Min Mat Min Exi Min Mat Gar Mat Fac Gar Fac Fac DSF Fac Fac Machines Accessed 45 | . 6 . 6 1 1 . 8 5 3 4 2 2 1 . 2 4 Terminals 38 | . 5 . 6 1 . . 6 5 3 3 2 1 1 . 1 4 Fabricators . | . . . . . . . . . . . . . . . . . Repair Stations . | . . . . . . . . . . . . . . . . . Recycling Units 4 | . 1 . . . . . 1 . . . . 1 . . 1 . Scanalyzers . | . . . . . . . . . . . . . . . . . Garrison Access 2 | . . . . . . . 1 . . 1 . . . . . . Total Hacks 104 | . 17 . 15 6 1 . 16 10 5 15 3 5 2 . 4 5 Successful 29 | . 5 . 5 2 1 . 2 2 . 7 . 1 1 . 2 1 Failed 75 | . 12 . 10 4 . . 14 8 5 8 3 4 1 . 2 4 Catastrophic 21 | . 2 . 1 1 . . 8 1 1 1 2 1 . . . 3 Database Lockouts . | . . . . . . . . . . . . . . . . . Manual 49 | . 7 . 6 . 1 . 12 4 5 11 1 . . . . 2 Terminals 93 | . 14 . 15 6 . . 14 10 5 14 3 3 2 . 2 5 Fabricators . | . . . . . . . . . . . . . . . . . Repair Stations . | . . . . . . . . . . . . . . . . . Recycling Units 8 | . 3 . . . . . 1 . . . . 2 . . 2 . Scanalyzers . | . . . . . . . . . . . . . . . . . Garrison Access 2 | . . . . . . . 1 . . 1 . . . . . . Terminal Hacks 23 | . 4 . 5 2 1 . . 2 . 6 . . 1 . 1 1 Record 4 | . . . . 2 . . . . . 1 . . . . 1 . Robot Analysis 1 | . 1 . . . . . . . . . . . . . . . Prototype ID Bank 5 | . 1 . 1 . . . . . . 3 . . . . . . Open Door 2 | . . . . . . . . 2 . . . . . . . . Open DSF 2 | . . . . . . . . . . . . . 1 . . 1 Unreport Threat 6 | . 2 . 2 . . . . . . 2 . . . . . . Locate Traps 1 | . . . 1 . . . . . . . . . . . . . Hauler Manifests 1 | . . . 1 . . . . . . . . . . . . . Derelict Proto ID Bank 1 | . . . . . 1 . . . . . . . . . . . Fabricator Hacks . | . . . . . . . . . . . . . . . . . Repair Station Hacks . | . . . . . . . . . . . . . . . . . Recycling Unit Hacks 4 | . 1 . . . . . 1 . . . . 1 . . 1 . Retrieve Components 4 | . 1 . . . . . 1 . . . . 1 . . 1 . Scanalyzer . | . . . . . . . . . . . . . . . . . Garrison Access Hacks 2 | . . . . . . . 1 . . 1 . . . . . . Unlock Access 2 | . . . . . . . 1 . . 1 . . . . . . Unauthorized Hacks . | . . . . . . . . . . . . . . . . . Terminals . | . . . . . . . . . . . . . . . . . Fabricators . | . . . . . . . . . . . . . . . . . Repair Stations . | . . . . . . . . . . . . . . . . . Recycling Units . | . . . . . . . . . . . . . . . . . Scanalyzers . | . . . . . . . . . . . . . . . . . Garrison Access . | . . . . . . . . . . . . . . . . . Data Cores Recovered 1 | . 1 . . . . . . . . . . . . . . . Used . | . . . . . . . . . . . . . . . . . Hacking Detections 36 | . 4 . 3 1 . . 7 5 3 4 2 1 1 . 2 3 Full Trace Events 8 | . 2 . 1 1 . . 2 1 1 . . . . . . . Feedback Events 2 | . 1 . . 1 . . . . . . . . . . . . Corruption 2 | . 1 . . 1 . . . . . . . . . . . . Feedback Blocked . | . . . . . . . . . . . . . . . . . Robot Schematics Acquired . | . . . . . . . . . . . . . . . . . Robots Built . | . . . . . . . . . . . . . . . . . Authchips . | . . . . . . . . . . . . . . . . . Time . | . . . . . . . . . . . . . . . . . Total Robot Build Rating . | . . . . . . . . . . . . . . . . . Part Schematics Acquired . | . . . . . . . . . . . . . . . . . Parts Built . | . . . . . . . . . . . . . . . . . Authchips . | . . . . . . . . . . . . . . . . . Time . | . . . . . . . . . . . . . . . . . Total Part Build Rating . | . . . . . . . . . . . . . . . . . Parts Repaired . | . . . . . . . . . . . . . . . . . Time . | . . . . . . . . . . . . . . . . . Parts Recycled . | . . . . . . . . . . . . . . . . . Recycled Matter . | . . . . . . . . . . . . . . . . . Retrieved Matter . | . . . . . . . . . . . . . . . . . Retrieved Components 19 | . 3 . . . . . 10 . . . . 3 . . 3 . Parts Scanalyzed . | . . . . . . . . . . . . . . . . . Part Schematics Acquired . | . . . . . . . . . . . . . . . . . Parts Damaged . | . . . . . . . . . . . . . . . . . Bothacking | -11 -10 -10 -9 -9 -9 -8 -8 -8 -8 -7 -7 -7 -6 -6 -5 -4 ------------ Run | Yrd Mat Min Mat Min Exi Min Mat Gar Mat Fac Gar Fac Fac DSF Fac Fac Used RIF Installer 3 | . . . . . . . . 1 . . 2 . . . . . Watcher Feeds 1 | . . . . . . . . . . . 1 . . . . . Alert ID Control 1 | . . . . . . . . . . . 1 . . . . . Robots Hacked 12 | . . . . . . . . . . . 3 . . 1 . 8 Non-combat . | . . . . . . . . . . . . . . . . . Combat 12 | . . . . . . . . . . . 3 . . 1 . 8 Robot Hacks Applied 12 | . . . . . . . . . . . 3 . . 1 . 8 overload_power 1 | . . . . . . . . . . . . . . . . 1 overwrite_iff 6 | . . . . . . . . . . . . . . . . 6 formatsys_high 5 | . . . . . . . . . . . 3 . . 1 . 1 Relay Couplers Released 35 | . . . . . . . . 15 . . 19 . . . . 1 Machine Destruction 35 | . . . . . . . . 15 . . 19 . . . . 1 Attached 6 | . . . . . . . . . . . 3 . . 1 . 2 Fabnet Peak Effective % . | . . . . . . . . . . . . . . . . . Robots Rewired . | . . . . . . . . . . . . . . . . . Allies Hacked . | . . . . . . . . . . . . . . . . . Hacks Repelled . | . . . . . . . . . . . . . . . . . Allies | -11 -10 -10 -9 -9 -9 -8 -8 -8 -8 -7 -7 -7 -6 -6 -5 -4 -------- Run | Yrd Mat Min Mat Min Exi Min Mat Gar Mat Fac Gar Fac Fac DSF Fac Fac Total Allies 21 | . . 2 . . . . . 2 . . 5 . . 3 . 9 Largest Group 4 | . . . 2 . . . . 1 . . 4 1 . 1 1 2 Highest-Rated Group 224 | . . . 46 . . . . 179 . . 224 32 . 90 90 137 Highest-Rated Ally 179 | . . . 31 . . . . 179 . . 80 32 . 90 90 137 Total Orders . | . . . . . . . . . . . . . . . . . Ally Attacks 104 | . . . 6 . . . . 8 . . 30 . . 11 2 47 Total Damage 5875 | . . . 128 . . . . 279 . . 1119 . . 400 150 3799 Kills 36 | . . . 3 . . . . 1 . . 8 . . 5 . 19 Allies Corrupted . | . . . . . . . . . . . . . . . . . Allies Melted . | . . . . . . . . . . . . . . . . . Field Lobotomies 4 | . . . . . . . . . . . . . . 2 . 2 Intel | -11 -10 -10 -9 -9 -9 -8 -8 -8 -8 -7 -7 -7 -6 -6 -5 -4 ------- Run | Yrd Mat Min Mat Min Exi Min Mat Gar Mat Fac Gar Fac Fac DSF Fac Fac Robot Analysis Total 1 | . 1 . . . . . . . . . . . . . . . Derelict Logs Recovered 1 | . . 1 . . . . . . . . . . . . . . Drone Launches . | . . . . . . . . . . . . . . . . . Drone Recoveries . | . . . . . . . . . . . . . . . . . Exploration | -11 -10 -10 -9 -9 -9 -8 -8 -8 -8 -7 -7 -7 -6 -6 -5 -4 ------------- Run | Yrd Mat Min Mat Min Exi Min Mat Gar Mat Fac Gar Fac Fac DSF Fac Fac Turns Passed 20583 | 1245 1257 85 2161 823 938 316 2725 2798 1379 1125 1639 1245 14 242 724 1867 Spaces Moved 9928 | 816 546 54 1099 367 389 119 1230 1500 613 618 817 585 9 85 322 759 Core 9 | 9 . . . . . . . . . . . . . . . . Treads 9078 | . 512 54 1099 367 389 119 1230 1500 613 618 817 585 9 85 322 759 Legs 841 | 807 34 . . . . . . . . . . . . . . . Wheels . | . . . . . . . . . . . . . . . . . Hover . | . . . . . . . . . . . . . . . . . Flight . | . . . . . . . . . . . . . . . . . Fastest Speed 50 | 50 120 160 160 160 240 240 156 165 165 165 161 161 161 158 162 161 Average Speed 164 | 119 157 160 160 201 240 240 158 165 165 165 164 161 161 161 162 173 Slowest Speed 247 | 120 160 160 160 240 240 240 235 165 165 165 246 161 161 162 164 247 Overloaded Moves . | . . . . . . . . . . . . . . . . . Propulsion Burnouts . | . . . . . . . . . . . . . . . . . Robots Hopped . | . . . . . . . . . . . . . . . . . Cave-ins Triggered 1 | . . . . . . . 1 . . . . . . . . . Exploration Rate (%) 53 | 61 89 23 92 64 81 30 83 90 49 15 85 13 . 54 10 20 Regions Visited 16 Branch Regions 4 Pre-discovered Areas 1 | . . . . 1 . . . . . . . . . . . . Known Exits Taken 4 | . . . . . . 1 1 . . 1 . . 1 . . . Unknown Exits Taken 9 | 1 1 1 1 1 1 . . . 1 . . 1 . . 1 . Scrap Searched 1 | . . . . 1 . . . . . . . . . . . . Spaces Dug 1 | . . . . . . . . . . . . 1 . . . . Terrain Destroyed 600 | . . . 10 6 . 6 108 97 35 . 75 5 . 34 3 221 Melee . | . . . . . . . . . . . . . . . . . Projectile 56 | . . . . . . . 8 1 12 . . 5 . . 3 27 AOE 544 | . . . 10 6 . 6 100 96 23 . 75 . . 34 . 194 Terrain Rammed . | . . . . . . . . . . . . . . . . . Walls Destroyed . | . . . . . . . . . . . . . . . . . Machines Disabled . | . . . . . . . . . . . . . . . . . Actions | -11 -10 -10 -9 -9 -9 -8 -8 -8 -8 -7 -7 -7 -6 -6 -5 -4 --------- Run | Yrd Mat Min Mat Min Exi Min Mat Gar Mat Fac Gar Fac Fac DSF Fac Fac Total 13103 | 1088 783 53 1371 433 394 140 1822 1687 935 716 1035 849 9 169 495 1124 Wait 2023 | 255 112 . 117 52 . 17 422 77 241 63 132 222 . 38 109 166 Move 9909 | 815 545 53 1098 366 388 118 1228 1498 612 617 815 584 8 84 321 759 Hop . | . . . . . . . . . . . . . . . . . Pick Up 208 | 12 22 . 31 2 2 . 25 11 15 14 13 8 . 9 15 29 Fast Attach 19 | . . . 4 . . . 4 . 1 2 . . . 1 4 3 Attach 67 | 6 6 . 2 . . . 9 4 2 2 6 2 1 2 2 23 Detach 1 | . . . . . . . . . . . . . . . . 1 Swap 130 | . 7 . 16 1 2 . 14 7 7 . 15 7 . 16 9 29 Drop 175 | . 9 . 36 3 2 . 26 7 19 12 6 7 . 8 21 19 Fire 566 | . 82 . 66 9 . 5 93 82 38 6 46 19 . 11 14 95 Melee . | . . . . . . . . . . . . . . . . . Ram . | . . . . . . . . . . . . . . . . . Kick . | . . . . . . . . . . . . . . . . . Crush 1 | . . . 1 . . . . . . . . . . . . . Escape Stasis 3 | . . . . . . . 1 . . . 2 . . . . . Rewire 1 | . . . . . . . . 1 . . . . . . . . Trap . | . . . . . . . . . . . . . . . . . Miscellaneous . | . . . . . . . . . . . . . . . . . Route ------- -11/Scrapyard -10/Materials (discovered 4 exits: *Mat x3 / [*Min]) -10/Mines -9/Materials (discovered 5 exits: *Mat x3 / *Min x2) -9/Mines (discovered 3 exits: *Mat x2 / *Exi) -9/Exiles -8/Mines -8/Materials (discovered 4 exits: *Fac x3 / Gar) -8/Garrison (discovered 3 exits: *Mat x3) -8/Materials -7/Factory (discovered 2 exits: *Fac / Gar) -7/Garrison (discovered 3 exits: *Fac x3) -7/Factory -6/Factory -6/DSF -5/Factory -4/Factory History --------- Turn | Location | Event 7 | -11/Scrapyard | Discovered new exit (range 14) 1246 | -11/Scrapyard | Entered Materials 1247 | -10/Materials | Build established: Mutant 1815 | -10/Materials | Discovered new exit (range 4) 2019 | -10/Materials | Discovered new exit (range 16) 2218 | -10/Materials | Discovered new exit (range 15) 2373 | -10/Materials | Discovered new exit (range 15) 2503 | -10/Materials | Entered Mines 2513 | -10/Mines | Learned location of 1 exit from Materials 2563 | -10/Mines | Discovered new exit (range 16) 2588 | -10/Mines | Entered Materials 2588 | -9/Materials | Accompanied by 2 allies 2588 | -9/Materials | Evolved 2 slots: Propulsion x1, Weapon x1 2589 | -9/Materials | Identified exit to Materials 2593 | -9/Materials | Led the pair of lost Derelicts to an unsafe place 2964 | -9/Materials | Build established: Skirmisher 3545 | -9/Materials | Discovered new exit (range 14) 3746 | -9/Materials | Discovered exit to Materials (range 3) 4391 | -9/Materials | Discovered new exit (range 14) 4456 | -9/Materials | Build established: Tank 4532 | -9/Materials | Discovered exit to Materials (range 16) 4749 | -9/Materials | Entered Mines 4763 | -9/Mines | Learned location of Storage (-7) 4814 | -9/Mines | Received a Rocket Launcher from a helpful Derelict 4888 | -9/Mines | Discovered exit to Materials (range 7) 5080 | -9/Mines | Found DCF Scrap (14 items) 5231 | -9/Mines | Discovered exit to Materials (range 11) 5562 | -9/Mines | Deemed a non-threat by the Exiles lab entrance 5562 | -9/Mines | Discovered new exit (range 5) 5572 | -9/Mines | Entered Exiles 5635 | -9/Exiles | Met 8R-AWN 5676 | -9/Exiles | Met EX-HEX 5839 | -9/Exiles | Met EX-DEC 5904 | -9/Exiles | Met EX-BIN 5937 | -9/Exiles | Aligned with FarCom system 5940 | -9/Exiles | Given EX-Vault access code 5997 | -9/Exiles | Opened EX-Vault 6011 | -9/Exiles | Found Field Lobotomy Kit 6060 | -9/Exiles | Warned to stay clear of 0b10 Research branches 6244 | -9/Exiles | Visited The Gauntlet 6481 | -9/Exiles | Discovered new exit (range 14) 6510 | -9/Exiles | Left Exiles lab with Field Lobotomy Kit 6510 | -9/Exiles | Entered Mines 6723 | -8/Mines | Discovered exit to Materials (range 5) 6809 | -8/Mines | Build established: Skirmisher 6826 | -8/Mines | Entered Materials 6826 | -8/Materials | Evolved 2 slots: Propulsion x1, Utility x1 7126 | -8/Materials | Build established: Tank 7422 | -8/Materials | Discovered new exit (range 5) 8089 | -8/Materials | Discovered new exit (range 8) 8294 | -8/Materials | Crushed by falling debris 9095 | -8/Materials | Discovered new exit (range 7) 9461 | -8/Materials | Identified exit to Garrison 9551 | -8/Materials | Entered Garrison 9615 | -8/Garrison | Triggered checkpoint 9629 | -8/Garrison | Garrison Relay disabled 10017 | -8/Garrison | Triggered checkpoint 10281 | -8/Garrison | Discovered new exit (range 10) 10301 | -8/Garrison | Rescued a captive Derelict 10343 | -8/Garrison | Triggered checkpoint 10415 | -8/Garrison | Garrison Relay disabled 10577 | -8/Garrison | Triggered checkpoint 10825 | -8/Garrison | Discovered new exit (range 14) 10901 | -8/Garrison | Triggered checkpoint 10936 | -8/Garrison | Garrison Relay disabled 11124 | -8/Garrison | Discovered new exit (range 14) 11203 | -8/Garrison | Triggered checkpoint 11306 | -8/Garrison | Garrison Relay disabled 11510 | -8/Garrison | Build established: Skirmisher 11631 | -8/Garrison | Triggered checkpoint 11838 | -8/Garrison | Phase Generator disabled 12212 | -8/Garrison | Installed Relay Interface Framework 12307 | -8/Garrison | Rescued AZ-K3N 12349 | -8/Garrison | Entered Materials 13149 | -8/Materials | First assault squad dispatched 13256 | -8/Materials | Destroyed 8 combat bots 13525 | -8/Materials | Discovered new exit (range 8) 13728 | -8/Materials | Entered Factory 13728 | -7/Factory | Evolved 2 slots: Utility x1, Weapon x1 14424 | -7/Factory | Discovered new exit (range 16) 14809 | -7/Factory | Identified exit to Garrison 14853 | -7/Factory | Entered Garrison 15005 | -7/Garrison | Triggered checkpoint 15164 | -7/Garrison | Phase Generator disabled 15545 | -7/Garrison | Triggered checkpoint 15556 | -7/Garrison | Garrison Relay disabled 15622 | -7/Garrison | Found embedded Infiltrators 15791 | -7/Garrison | Triggered checkpoint 15841 | -7/Garrison | Triggered checkpoint 15853 | -7/Garrison | Triggered checkpoint 15981 | -7/Garrison | Triggered checkpoint 16009 | -7/Garrison | Discovered new exit (range 12) 16024 | -7/Garrison | Expanded RIF knowledge: Alert ID Control 16061 | -7/Garrison | Garrison Relay disabled 16106 | -7/Garrison | Expanded RIF knowledge: Watcher Feeds 16264 | -7/Garrison | Discovered new exit (range 8) 16301 | -7/Garrison | Garrison Relay disabled 16421 | -7/Garrison | Discovered new exit (range 8) 16455 | -7/Garrison | Garrison Relay disabled 16492 | -7/Garrison | Entered Factory 16492 | -7/Factory | Accompanied by 1 ally 17691 | -7/Factory | Discovered new exit (range 11) 17737 | -7/Factory | Entered another Factory area 17737 | -6/Factory | Evolved 2 slots: Power x1, Utility x1 17751 | -6/Factory | Identified exit to DSF 17751 | -6/Factory | Entered DSF 17785 | -6/DSF | Additional patrols routed to DSF 17800 | -6/DSF | Assimilated X-62 Marksman with FLK Orb 17877 | -6/DSF | Assimilated H-61 Shepherd with FLK Orb 17883 | -6/DSF | Discovered new exit (range 16) 17963 | -6/DSF | Sterilization system engaged 17983 | -6/DSF | Ambient heat levels rising (+10) 17993 | -6/DSF | Entered Factory 17993 | -5/Factory | Accompanied by 1 ally 17993 | -5/Factory | Evolved 2 slots: Propulsion x1, Utility x1 18443 | -5/Factory | Build established: Scavenger-Tank 18646 | -5/Factory | Discovered new exit (range 5) 18717 | -5/Factory | Entered another Factory area 18717 | -4/Factory | Evolved 2 slots: Utility x1, Weapon x1 19015 | -4/Factory | Build established: Skirmisher 19206 | -4/Factory | Destroyed 7 combat bots 19217 | -4/Factory | First assault squad dispatched 19683 | -4/Factory | Assimilated H-71 Marshal with FLK Orb 19715 | -4/Factory | Lost 4 parts (1p1n1u1w) 19768 | -4/Factory | Found Prototype Device 19810 | -4/Factory | Spotted B-86 Titan 19821 | -4/Factory | Assimilated B-86 Titan with FLK Orb 19846 | -4/Factory | Identified Active Sensor Suite 20120 | -4/Factory | Lost 4 parts (1p1n1u1w) 20373 | -4/Factory | Build established: Scavenger-Tank 20579 | -4/Factory | System corruption reached 10% 20583 | -4/Factory | Core integrity fell below 50% 20584 | -4/Factory | Self-destructed Last Messages --------------- 20575_ M-36 Artificer destroyed. 20577_ G-67 Veteran destroyed. 20578_ Imp. Medium Armor Plating destroyed. 20578_ System corrupted by crushing effect (+5). 20579_ Hyb. Antimatter Reactor destroyed. 20580_ Grenade intercepted. 20581_ Critical hit (Smash). 20581_ Arm. Medium Treads destroyed. 20581_ System corrupted by crushing effect (+5). 20581_ Imp. Medium Treads destroyed. 20582_ G-67 Veteran destroyed. 20583_ C-30 ARC bursts open, deploying its payload. 20583_ G-73 Enforcer unfolds itself. 20583_ L-61 Swordsman unfolds itself. 20583_ G-67 Veteran unfolds itself. 20583_ M-36 Artificer unfolds itself. 20583_ Mni. Grenade Launcher destroyed. 20583_ System corrupted by crushing effect (+1). [Achievement: 20k Club] Map ----- +----------------------------------------------------+ | ?????????????????????????????????????????????????? | | ?????????????????????????????????????????????????? | | ?????????????????????????????????????????????????? | | ?????????????????????????????????????????????????? | | ?????????????????????????????????????????????????? | | ?????????????????????????????????????????????????? | | ?????????????????????????????????????????????????? | | ?????????????????????????????????????????????????? | | ?????????????????????????????????????????????????? | | ?????????????????????????????????????????????????? | | ?????????????????????????????????????????????????? | | ?????????????????????????????????????????????????? | | ?????????????????????????????????????????????????? | | ?????????????????????????????????????????????????? | | ?????????????????????????????????????????????????? | | ?????????????????????????????????????????????????? | | ?????????????????????????????????????????????????? | | ???????????????##############????????????????????? | | ???????????????# #????????????????????? | | ???????????????# #????????????????????? | | ???????????????# #????????????????????? | | ???????????????# #????????????????????? | | ???????????????# #????????#####???????? | | ???????????????# ####???? #???????? | | ???????????????# #???? #???????? | | ???????????????# @ = #???? #???????? | | ???????????????# b [ %#### #???????? | | ???????????????# %lggg[+ ! #?? #???? | | ???????????????# %gg[ * #=m# !#?? ##### | | ???????????????# i #g ####+##### | | ????????????###########% # | | ???????????? ## | | ??????????? ### "" | | ??????????? "%" g "" "" "" | | ??????????? " #;######### ""T"" "" | | ??????????? % # ## """ | | ?????????????######### # """ ## | | ?????????????????????# #!"G ## | | ?????????????????????# #* "" ## #### ###### | | ?????????????????????+ /% !% ## ####/#####? | | ?????????????????????# #*% [""" ## # #? | | ?????????????????????# # """ ## # ! "" #? | | ?????????????????????# # """ ## # ""S #? | | ?????????????????????# # ## #= = " #? | | ?????????????????????# ########+## # #? | | ?????????????????????# # """ #? | | ?????????????????????# # """ !#? | | ?????????????????????# # """ ]#? | | ?????????????????????# %+" #? | | ????????????????????? #?######+##+########### | +----------------------------------------------------+ Best States ------------- Heat Dissipation 120 Energy Generation 35 Energy Capacity 1315 Matter Stores 300 Matter Capacity 300 Sight Range 16 Robot Scan Range 14 Terrain Scan Density 10 Base Temperature (-) 100 EM Shielding 3 Armor Coverage 825 Evasion (%) 55 Targeting Accuracy 8 Recoil Reduction 5 Relay Coupler Types 1 Relay Coupler Value 26 Authchip Count 1 Item Schematics ----------------- None Robot Schematics ------------------ None Fabricated ------------ Nothing Alien Tech Used ----------------- None Achievements -------------- 20k Club Error 47 Oh No You Don't! root@ Challenges ------------ None Game ------ Seed ThrusterScrapoidDerivative Manual? 0 Play Time 04:30:37 Cumulative 30.2 hours Start 2024.12.12 @ 01:23:31 End 2024.12.12 @ 20:46:20 Sessions 2 Manual Loads 0 Difficulty Rogue Special Mode None Game No. 14 Rogue 14 Adventurer 0 Explorer 0 Win Type - Total 0 Types 0/0/0/0/0/0/0/0/0 Lore% 13 Gallery% 23 Achievement% 21 Wizard Run 0 Options --------- Layout 1 ASCII 0 Keyboard 0 Movement Mouse Keybinds 0 Fullscreen 1 Font 32/Smallcaps Map View 50x35 Zoom Use 0% Tactical HUD 1 Map Filters NONE Filters NONE Steam 1 RUN: f141cda1-aaa9-4041-ab5e-d58ce12e3f20